bitfinex-derivatives/quotes_BTCF0:USTF0_20250207
["timestamp","ask_amount","ask_price","bid_price","bid_amount"]
[1738902304129,0.3608,97796.0,97777.0,0.18220542]
[1738902304321,0.2045152,97778.0,97777.0,0.18220542]
[1738902305324,0.2045152,97778.0,97777.0,0.1937299]
[1738902305729,0.2045152,97778.0,97777.0,0.01152448]
[1738902306031,0.2045152,97778.0,97777.0,0.2045173]
[1738902306529,0.2045215,97775.0,97773.0,0.3608]
[1738902307331,0.2045215,97775.0,97774.0,0.01127824]
[1738902311428,0.2045215,97775.0,97774.0,0.00015343]
[1738902313031,0.2055215,97775.0,97774.0,0.00015343]
[1738902321425,0.2055215,97775.0,97774.0,0.20467703]
[1738902323340,0.2055215,97775.0,97774.0,0.00015343]
[1738902329935,0.2055215,97775.0,97774.0,0.20467703]
[1738902331942,0.001,97775.0,97774.0,0.20467703]
[1738902334539,0.001,97775.0,97774.0,0.21583319]
[1738902340846,0.001,97775.0,97774.0,0.50744723]
[1738902344341,0.001,97775.0,97774.0,0.45861106]
[1738902345549,0.001,97775.0,97774.0,0.50441106]
[1738902347953,0.001,97775.0,97774.0,0.86521106]
[1738902348141,0.001,97775.0,97774.0,0.62243319]
[1738902348452,0.001,97775.0,97774.0,0.26163319]
[1738902348754,0.001,97775.0,97774.0,0.62243319]
[1738902349642,0.001,97775.0,97774.0,0.26163319]
[1738902349843,0.001,97775.0,97774.0,0.62243319]
[1738902352850,0.001,97775.0,97774.0,0.57663319]
[1738902353056,0.001,97775.0,97774.0,0.62243319]
[1738902360249,0.001,97775.0,97774.0,0.57663319]
[1738902360563,0.2055215,97775.0,97774.0,0.01130959]
[1738902362076,0.3608,97781.0,97770.0,0.00153413]
[1738902362273,0.2045298,97771.0,97770.0,0.08064616]
[1738902362568,0.2045298,97771.0,97770.0,0.00153413]
[1738902363368,0.2045298,97771.0,97770.0,0.00253413]
[1738902363568,0.2045298,97771.0,97770.0,0.01452826]
[1738902363875,0.2045298,97771.0,97770.0,0.00353413]
[1738902365168,0.2045298,97771.0,97770.0,0.01446622]
[1738902367169,0.26786,97771.0,97764.0,0.16923436]
[1738902367380,0.2045549,97759.0,97758.0,0.15967234]
[1738902367569,0.2045675,97753.0,97752.0,0.36273094]
[1738902367769,0.4724275,97753.0,97752.0,0.36273094]
[1738902367968,0.7266675,97753.0,97752.0,0.36273094]
[1738902368269,0.2045696,97752.0,97750.0,0.30408362]
[1738902369776,0.2045696,97752.0,97750.0,0.30708362]
[1738902369971,0.2045696,97752.0,97750.0,0.31108362]
[1738902370170,0.2065696,97752.0,97750.0,0.30808362]
[1738902370778,0.002,97752.0,97750.0,0.30808362]
[1738902370978,0.2045717,97751.0,97750.0,0.30808362]
[1738902371479,0.2045717,97751.0,97750.0,0.30408362]
[1738902372167,0.004,97752.0,97741.0,0.00015343]
[1738902372168,0.2045905,97742.0,97741.0,0.00015343]
[1738902372363,0.5653905,97742.0,97741.0,0.00015343]
[1738902373671,0.5673905,97742.0,97741.0,0.00015343]
[1738902374779,0.5683905,97742.0,97741.0,0.00015343]
[1738902376078,0.5663905,97742.0,97741.0,0.00015343]
[1738902376265,0.5663905,97742.0,97741.0,0.00215343]
[1738902376668,0.5663905,97742.0,97741.0,0.00015343]
[1738902376879,0.5663905,97742.0,97741.0,0.00115343]
[1738902377676,0.5653905,97742.0,97741.0,0.00115343]
[1738902377883,0.2045905,97742.0,97741.0,0.20774603]
[1738902378382,0.2045905,97742.0,97741.0,0.20874603]
[1738902378973,0.2045905,97742.0,97741.0,0.20774603]
[1738902380288,0.2045905,97742.0,97741.0,0.00315343]
[1738902380582,0.2045905,97742.0,97741.0,0.0141627]
[1738902380780,0.2045905,97742.0,97741.0,0.00515343]
[1738902382384,0.2045905,97742.0,97741.0,0.00415343]
[1738902382583,0.2221,97753.0,97746.0,0.2045819]
[1738902382584,0.2045779,97749.0,97746.0,0.2045819]
[1738902382884,0.2221,97753.0,97751.0,0.2045702]
[1738902383178,0.2045696,97752.0,97751.0,0.2045702]
[1738902383387,0.2045736,97751.0,97747.0,0.0323]
[1738902383881,0.2221,97753.0,97747.0,0.0323]
[1738902384079,0.2221,97753.0,97752.0,0.2045696]
[1738902385180,0.001,97753.0,97752.0,0.2045696]
[1738902385681,0.002,97753.0,97752.0,0.2045696]
[1738902386677,0.002,97753.0,97747.0,0.0323]
[1738902386981,0.2055675,97753.0,97752.0,0.003]
[1738902387181,0.2045675,97753.0,97752.0,0.007]
[1738902387882,0.2045675,97753.0,97752.0,0.003]
[1738902388384,0.2045724,97751.0,97747.0,0.0413]
[1738902388689,0.2045724,97751.0,97747.0,0.0363]
[1738902388880,0.2045724,97751.0,97747.0,0.0323]
[1738902389080,0.2045724,97751.0,97747.0,0.2368799]
[1738902389484,0.2045724,97751.0,97747.0,0.2398799]
[1738902390089,0.2045641,97755.0,97752.0,0.2045677]
[1738902390284,0.2045641,97755.0,97754.0,0.2045654]
[1738902390885,0.3608,97760.0,97759.0,0.2045549]
[1738902391889,0.3618,97760.0,97759.0,0.2045549]
[1738902392890,0.2045569,97759.0,97753.0,0.5653666]
[1738902393089,0.36432001,97760.0,97753.0,0.5653666]
[1738902393284,0.2045617,97756.0,97753.0,0.5653666]
[1738902394890,0.2045617,97756.0,97753.0,0.5683666]
[1738902395189,0.2045617,97756.0,97753.0,0.5713666]
[1738902395581,0.2045617,97756.0,97753.0,0.5683666]
[1738902395781,0.2045617,97756.0,97753.0,0.5713666]
[1738902396488,0.2045652,97755.0,97753.0,0.5713666]
[1738902397192,0.2045652,97755.0,97753.0,0.5683666]
[1738902397386,0.2045652,97755.0,97753.0,0.5713666]
[1738902397684,0.2045654,97754.0,97753.0,0.58043331]
[1738902398089,0.2045654,97754.0,97753.0,0.57743331]
[1738902398291,0.2045654,97754.0,97753.0,0.57943331]
[1738902399584,0.2045654,97754.0,97753.0,0.57643331]
[1738902399891,0.2045654,97754.0,97753.0,0.57943331]
[1738902405694,0.2045654,97754.0,97753.0,0.57643331]
[1738902405900,0.2045654,97754.0,97753.0,0.57943331]
[1738902406399,0.2045654,97754.0,97753.0,0.21863331]
[1738902406695,0.2221,97765.0,97753.0,0.37486671]
[1738902406895,0.2045565,97759.0,97753.0,0.37486671]
[1738902407401,0.2045565,97759.0,97757.0,0.2045574]
[1738902407698,0.2045565,97759.0,97758.0,0.0612]
[1738902409696,0.2045529,97760.0,97758.0,0.265757]
[1738902412103,0.2045549,97759.0,97758.0,0.0612]
[1738902413188,0.3608,97759.0,97747.0,0.0323]
[1738902413504,0.2045779,97748.0,97747.0,0.0323]
[1738902415303,0.2055779,97748.0,97747.0,0.0323]
[1738902415688,0.2065779,97748.0,97747.0,0.0323]
[1738902418098,0.2075779,97748.0,97747.0,0.0323]
[1738902418496,0.3608,97750.0,97741.0,0.00015343]
[1738902418497,0.2045905,97742.0,97741.0,0.00015343]
[1738902420103,0.20758,97748.0,97747.0,0.2045801]
[1738902420404,0.44037073,97748.0,97747.0,0.2045801]
[1738902421001,0.23279273,97748.0,97744.0,0.3608]
[1738902421193,0.2045822,97746.0,97745.0,0.204584]
[1738902421399,0.2045822,97746.0,97745.0,0.1721415]
[1738902422193,0.2045843,97745.0,97744.0,0.3608]
[1738902422803,0.2045745,97750.0,97745.0,0.2045837]
[1738902423398,0.2045761,97749.0,97745.0,0.2045837]
[1738902423799,0.2045761,97749.0,97745.0,0.2065837]
[1738902424399,0.2045713,97752.0,97748.0,0.204578]
[1738902425300,0.2221,97755.0,97748.0,0.204578]
[1738902425500,0.2221,97755.0,97748.0,0.205578]
[1738902425501,0.2045719,97751.0,97748.0,0.205578]
[1738902426099,0.2045719,97751.0,97748.0,0.209578]
[1738902426906,0.204574,97750.0,97748.0,0.209578]
[1738902427107,0.36132001,97760.0,97748.0,0.212578]
[1738902427409,0.3608,97760.0,97748.0,0.008]
[1738902427706,0.3608,97760.0,97749.0,0.2045755]
[1738902427912,0.20457,97752.0,97749.0,0.2045755]
[1738902428409,0.20457,97752.0,97750.0,0.2045719]
[1738902428612,0.20457,97752.0,97748.0,0.005]
[1738902429113,0.20457,97752.0,97748.0,0.007]
[1738902429411,0.20457,97752.0,97751.0,0.2045717]
[1738902429917,0.2045641,97755.0,97752.0,0.2045692]
[1738902430114,0.2045641,97755.0,97753.0,0.0312]
[1738902430614,0.2045641,97755.0,97754.0,0.0663]
[1738902431315,0.3608,97760.0,97754.0,0.0663]
[1738902431507,0.3608,97760.0,97757.0,0.2045587]
[1738902431508,0.204559,97758.0,97757.0,0.2045587]
[1738902432711,0.2045633,97755.0,97754.0,0.0683]
[1738902433912,0.2045633,97755.0,97754.0,0.0673]
[1738902434116,0.2045633,97755.0,97754.0,0.2718654]
[1738902434413,0.2045633,97755.0,97754.0,0.2728654]
[1738902434909,0.2045633,97755.0,97754.0,0.0703]
[1738902435116,0.2045633,97755.0,97754.0,0.0693]
[1738902435620,0.2045633,97755.0,97754.0,0.0683]
[1738902437424,0.2045633,97755.0,97754.0,0.003]
[1738902438111,0.3608,97759.0,97745.0,0.00891037]
[1738902438411,0.33484924,97755.0,97754.0,0.001]
[1738902438616,0.2557043,97755.0,97754.0,0.001]
[1738902439022,0.2567043,97755.0,97754.0,0.001]
[1738902439216,0.2055633,97755.0,97754.0,0.001]
[1738902439702,0.2055633,97755.0,97745.0,0.3608]
[1738902439906,0.2045821,97746.0,97745.0,0.2045814]
[1738902441008,0.204587,97746.0,97745.0,0.2045839]
[1738902441311,0.204587,97746.0,97742.0,0.1025996]
[1738902441312,0.2045738,97750.0,97749.0,0.2045715]
[1738902441711,0.2045821,97746.0,97745.0,0.002]
[1738902442507,0.2045821,97746.0,97745.0,0.001]
[1738902443713,0.2045884,97743.0,97742.0,0.1025996]
[1738902443918,0.5653884,97743.0,97742.0,0.1025996]
[1738902444216,0.2045905,97742.0,97741.0,0.00015343]
[1738902445715,0.2045905,97742.0,97741.0,0.00315343]
[1738902446820,0.4266905,97742.0,97741.0,0.00315343]
[1738902447014,0.4266905,97742.0,97741.0,0.00615343]
[1738902448021,0.2046366,97720.0,97706.0,0.0937]
[1738902448315,0.204647,97715.0,97713.0,0.2046504]
[1738902448507,0.3608,97722.0,97709.0,0.00869614]
[1738902448707,0.2046367,97720.0,97719.0,0.204638]
[1738902450117,0.2046367,97720.0,97719.0,0.222638]
[1738902450322,0.2046367,97720.0,97719.0,0.018]
[1738902450522,0.2046367,97720.0,97719.0,0.009]
[1738902450814,0.2046367,97720.0,97719.0,0.015]
[1738902451011,0.2046367,97720.0,97719.0,0.013]
[1738902453716,0.4267367,97720.0,97719.0,0.013]
[1738902454315,0.7875367,97720.0,97719.0,0.013]
[1738902462112,0.7875367,97720.0,97710.0,0.0001535]
[1738902462113,0.204647,97715.0,97710.0,0.0001535]
[1738902462321,0.2046931,97693.0,97692.0,0.0966]
[1738902462518,0.5654931,97693.0,97692.0,0.0966]
[1738902463218,0.5564931,97693.0,97692.0,0.0966]
[1738902463424,0.5474931,97693.0,97692.0,0.0966]
[1738902463822,0.5474931,97693.0,97692.0,0.1056]
[1738902464227,0.5474931,97693.0,97692.0,0.1146]
[1738902468425,0.7695931,97693.0,97692.0,0.1146]
[1738902474438,0.5474931,97693.0,97692.0,0.1146]
[1738902474938,0.1866931,97693.0,97692.0,0.1146]
[1738902486951,0.2221,97694.0,97693.0,0.2046927]
[1738902488440,0.2231,97694.0,97693.0,0.2136927]
[1738902489142,0.2241,97694.0,97693.0,0.2226927]
[1738902492242,0.002,97694.0,97693.0,0.018]
[1738902492453,0.2066906,97694.0,97693.0,0.018]
[1738902496758,0.21594076,97694.0,97693.0,0.018]
[1738902497755,0.2047074,97686.0,97685.0,0.24325201]
[1738902497958,0.5655074,97686.0,97685.0,0.24325201]
[1738902498251,0.7876074,97686.0,97685.0,0.24325201]
[1738902498441,0.5829,97686.0,97683.0,0.0001535]
[1738902498646,0.2047116,97684.0,97683.0,0.0001535]
[1738902498943,0.1957116,97684.0,97683.0,0.0001535]
[1738902499458,0.7168116,97684.0,97683.0,0.0001535]
[1738902499652,0.1957347,97673.0,97672.0,0.00153554]
[1738902499850,0.5555347,97673.0,97672.0,0.00153554]
[1738902500245,0.2047514,97665.0,97664.0,0.24325201]
[1738902500452,0.5655514,97665.0,97664.0,0.24325201]
[1738902502351,0.3618,97665.0,97655.0,0.00015359]
[1738902502556,0.2047703,97656.0,97655.0,0.00015359]
[1738902502854,0.2047703,97656.0,97655.0,0.00932878]
[1738902503051,0.2047703,97656.0,97655.0,0.00015359]
[1738902503752,0.2057703,97656.0,97655.0,0.00015359]
[1738902505154,0.2057703,97656.0,97655.0,0.00908873]
[1738902505355,0.2067703,97656.0,97655.0,0.00015359]
[1738902509155,0.2067703,97656.0,97655.0,0.00939242]
[1738902510458,0.002,97656.0,97655.0,0.21416482]
[1738902512548,0.4268444,97669.0,97664.0,0.2047528]
[1738902513264,0.2047452,97668.0,97660.0,0.2047606]
[1738902513458,0.2047521,97665.0,97655.0,0.37019242]
[1738902513764,0.3608,97665.0,97655.0,0.37019242]
[1738902513961,0.2047703,97656.0,97655.0,0.37019242]
[1738902514665,0.4268703,97656.0,97655.0,0.00939242]
[1738902514969,0.7876703,97656.0,97655.0,0.00939242]
[1738902515464,0.7886703,97656.0,97655.0,0.00939242]
[1738902516056,0.7886703,97656.0,97655.0,0.00015359]
[1738902516566,0.7896703,97656.0,97655.0,0.00115359]
[1738902517764,0.5675703,97656.0,97655.0,0.00115359]
[1738902519565,0.5675703,97656.0,97655.0,9e-08]
[1738902524865,0.6133303,97656.0,97655.0,9e-08]
[1738902527862,0.8354303,97656.0,97655.0,9e-08]
[1738902529670,0.88523004,97656.0,97655.0,9e-08]
[1738902530275,0.2047891,97647.0,97646.0,9.895e-05]
[1738902530465,0.5655891,97647.0,97646.0,9.895e-05]
[1738902531964,0.5665891,97647.0,97646.0,9.895e-05]
[1738902532371,0.5675891,97647.0,97646.0,9.895e-05]
[1738902534375,0.57680476,97647.0,97646.0,9.895e-05]
[1738902543075,0.002,97647.0,97646.0,0.20489015]
[1738902543381,0.2221,97654.0,97646.0,0.20489015]
[1738902543382,0.1722,97654.0,97653.0,0.2047765]
[1738902543578,0.2047738,97655.0,97653.0,0.2047765]
[1738902543978,0.2047646,97659.0,97657.0,0.2047681]
[1738902545780,0.001,97658.0,97657.0,0.2047681]
[1738902546285,0.2057646,97659.0,97657.0,0.2047681]
[1738902546685,0.2067646,97659.0,97657.0,0.2047681]
[1738902547685,0.2067646,97659.0,97657.0,0.21410966]
[1738902548073,0.001,97658.0,97657.0,0.21410966]
[1738902548686,0.2067646,97659.0,97657.0,0.21410966]
[1738902548877,0.002,97659.0,97658.0,0.204766]
[1738902549078,0.001,97659.0,97658.0,0.204766]
[1738902549580,0.3608,97666.0,97658.0,0.2047656]
[1738902549772,0.2047639,97659.0,97658.0,0.2047656]
[1738902549985,0.2057639,97659.0,97658.0,0.2047656]
[1738902551073,0.001,97659.0,97658.0,0.2047656]
[1738902551274,0.002,97659.0,97658.0,0.2047656]
[1738902551479,0.001,97659.0,97658.0,0.21402648]
[1738902552287,0.002,97659.0,97658.0,0.21402648]
[1738902557596,0.2067639,97659.0,97658.0,0.21402648]
[1738902557890,0.002,97659.0,97653.0,0.2047749]
[1738902558198,0.002,97659.0,97651.0,0.3608]
[1738902558199,0.3628,97659.0,97648.0,0.2047858]
[1738902558384,0.2047891,97647.0,97646.0,9.895e-05]
[1738902558991,0.36332001,97659.0,97649.0,0.2047847]
[1738902558992,0.2047823,97651.0,97649.0,0.2047847]
[1738902559393,0.2047828,97650.0,97649.0,0.2047847]
[1738902560395,0.00252001,97659.0,97658.0,0.204766]
[1738902560587,0.002,97659.0,97658.0,0.204766]
[1738902561391,0.001,97659.0,97658.0,0.204766]
[1738902561990,0.002,97659.0,97654.0,0.2047744]
[1738902562192,0.002,97659.0,97658.0,0.204766]
[1738902564698,0.001,97659.0,97658.0,0.204766]
[1738902564897,0.002,97659.0,97658.0,0.204766]
[1738902566803,0.002,97659.0,97658.0,0.21389732]
[1738902571807,0.002,97659.0,97658.0,0.57469732]
[1738902574896,0.36095359,97674.0,97658.0,0.36993132]
[1738902575102,0.56568609,97674.0,97673.0,0.2047346]
[1738902576414,0.56668609,97674.0,97673.0,0.2047346]
[1738902576807,0.36195359,97674.0,97673.0,0.2047346]
[1738902577316,0.36195359,97674.0,97673.0,0.21388348]
[1738902577517,0.36295359,97674.0,97673.0,0.21488348]
[1738902580516,0.56768609,97674.0,97673.0,0.21488348]
[1738902582708,0.56768609,97674.0,97673.0,0.001]
[1738902588417,0.20688609,97674.0,97673.0,0.001]
[1738902592115,0.20688609,97674.0,97673.0,0.2057346]
[1738902593024,0.00215359,97674.0,97673.0,0.2057346]
[1738902604826,0.15345219,97689.0,97673.0,0.3618]
[1738902605125,0.15345219,97689.0,97688.0,0.2047031]
[1738902606030,0.15345219,97697.0,97689.0,0.2047002]
[1738902606522,0.15345219,97697.0,97692.0,0.2046936]
[1738902606729,0.15345219,97697.0,97695.0,0.2046877]
[1738902607425,0.15445219,97697.0,97695.0,0.2046877]
[1738902607628,0.75201445,97722.0,97715.0,0.2046465]
[1738902607833,0.2046368,97720.0,97715.0,0.2046465]
[1738902609022,0.2046388,97719.0,97715.0,0.2046465]
[1738902609630,0.001,97716.0,97715.0,0.2046465]
[1738902609832,0.002,97716.0,97715.0,0.2136465]
[1738902610333,0.001,97716.0,97715.0,0.2116465]
[1738902611526,0.001,97716.0,97715.0,0.2046465]
[1738902611730,0.00253571,97717.0,97715.0,0.2146465]
[1738902612236,0.00253571,97717.0,97715.0,0.01]
[1738902612436,0.00253571,97717.0,97716.0,0.2046445]
[1738902613039,0.00153571,97717.0,97716.0,0.2046445]
[1738902614140,0.00153571,97717.0,97715.0,0.011]
[1738902614339,0.20617811,97717.0,97716.0,0.005]
[1738902615040,0.20617811,97717.0,97716.0,0.01]
[1738902618445,0.00153571,97717.0,97716.0,0.2146445]
[1738902624333,0.00153571,97717.0,97711.0,0.04584]
[1738902624532,0.00153571,97717.0,97715.0,0.3608]
[1738902625240,0.00153571,97717.0,97716.0,0.2046445]
[1738902625444,0.00253571,97717.0,97716.0,0.2046445]
[1738902626145,0.00153571,97717.0,97716.0,0.2046445]
[1738902626442,0.00353571,97717.0,97716.0,0.2046445]
[1738902627046,0.00253571,97717.0,97716.0,0.2096445]
[1738902634946,0.20717811,97717.0,97716.0,0.005]
[1738902636756,0.21690318,97717.0,97716.0,0.005]
[1738902639555,0.26666543,97717.0,97716.0,0.005]
[1738902640453,0.05229796,97717.0,97716.0,0.005]
[1738902640656,0.05229796,97717.0,97716.0,0.2096445]
[1738902642356,0.00253571,97717.0,97716.0,0.21950158]
[1738902646261,0.00015351,97725.0,97724.0,0.2046277]
[1738902646467,0.00015351,97725.0,97724.0,0.5654277]
[1738902647754,0.00015351,97725.0,97724.0,0.5674277]
[1738902655376,0.15331614,97736.0,97735.0,0.2046047]
[1738902656479,0.15631614,97736.0,97735.0,0.2046047]
[1738902656668,0.003,97736.0,97735.0,0.2046047]
[1738902656869,0.005,97736.0,97735.0,0.2046047]
[1738902659971,0.005,97736.0,97735.0,0.21436391]
[1738902661779,0.005,97736.0,97735.0,0.57516391]
[1738902661981,0.00015351,97745.0,97744.0,0.2045858]
[1738902662478,0.2045864,97744.0,97740.0,0.2502738]
[1738902662673,0.20473771,97745.0,97743.0,0.2045879]
[1738902663075,0.21273771,97745.0,97743.0,0.2045879]
[1738902663378,0.21873771,97745.0,97744.0,0.001]
[1738902663881,0.01415351,97745.0,97744.0,0.2055858]
[1738902664271,0.00815351,97745.0,97744.0,0.2045858]
[1738902664472,0.01315351,97745.0,97744.0,0.2045858]
[1738902665384,0.18349022,97758.0,97744.0,0.2045858]
[1738902665385,0.18349022,97758.0,97757.0,0.2045586]
[1738902666488,0.15300755,97763.0,97755.0,0.3608]
[1738902666679,0.15300755,97763.0,97762.0,0.2045482]
[1738902668779,0.15800755,97763.0,97762.0,0.2045482]
[1738902668982,0.15800755,97763.0,97762.0,0.21438157]
[1738902669478,0.16000755,97763.0,97762.0,0.21438157]
[1738902669679,0.15500755,97763.0,97762.0,0.21538157]
[1738902669989,0.15300755,97763.0,97762.0,0.21538157]
[1738902670289,0.00015351,97767.0,97762.0,0.21538157]
[1738902670290,0.00015351,97767.0,97764.0,0.2045425]
[1738902670488,0.00015351,97767.0,97766.0,0.3608]
[1738902671587,0.00015351,97767.0,97766.0,0.5653398]
[1738902671790,0.00215351,97767.0,97766.0,0.5653398]
[1738902672886,0.00315351,97767.0,97766.0,0.5653398]
[1738902674377,0.00315351,97767.0,97766.0,0.3608]
[1738902674582,0.00315351,97767.0,97762.0,0.00983337]
[1738902674889,0.00315351,97767.0,97761.0,0.20455]
[1738902675794,0.00115351,97767.0,97761.0,0.20455]
[1738902675985,0.00015351,97767.0,97761.0,0.20455]
[1738902676187,0.2045408,97766.0,97761.0,0.20455]
[1738902676388,0.3608,97765.0,97755.0,0.01028544]
[1738902676685,0.3608,97765.0,97755.0,0.21428814]
[1738902676686,0.2045561,97759.0,97755.0,0.21428814]
[1738902677094,0.00015351,97767.0,97755.0,0.00972544]
[1738902677291,0.00015351,97767.0,97763.0,0.2045455]
[1738902677497,0.00015351,97767.0,97765.0,0.2045418]
[1738902678092,0.00015351,97767.0,97761.0,0.002]
[1738902678288,0.2045409,97766.0,97761.0,0.002]
[1738902678884,0.2045409,97766.0,97761.0,0.001]
[1738902679093,0.2045409,97766.0,97760.0,0.2045515]
[1738902679488,0.2045409,97766.0,97761.0,0.001]
[1738902680898,0.2045409,97766.0,97761.0,0.002]
[1738902681601,0.2045422,97765.0,97761.0,0.002]
[1738902682799,0.00015351,97767.0,97761.0,0.002]
[1738902682991,0.2045464,97763.0,97761.0,0.001]
[1738902683195,0.2045464,97763.0,97761.0,0.002]
[1738902684193,0.00015351,97767.0,97764.0,0.2045435]
[1738902684398,0.00015351,97767.0,97765.0,0.2045413]
[1738902685698,0.00115351,97767.0,97765.0,0.2045413]
[1738902686098,0.00215351,97767.0,97765.0,0.2045413]
[1738902687003,0.00215351,97767.0,97766.0,0.2045398]
[1738902687295,0.00215351,97767.0,97760.0,0.0094577]
[1738902687501,0.00215351,97767.0,97756.0,0.3608]
[1738902687707,0.00215351,97767.0,97756.0,0.5653607]
[1738902688105,0.2045567,97758.0,97756.0,0.5653607]
[1738902688905,0.2045567,97758.0,97756.0,0.5683607]
[1738902689408,0.2045567,97758.0,97756.0,0.57779468]
[1738902689708,0.2045446,97764.0,97756.0,0.37323398]
[1738902690111,0.2045446,97764.0,97762.0,0.2045475]
[1738902690497,0.2045496,97762.0,97756.0,0.37523398]
[1738902690702,0.2045496,97762.0,97759.0,0.2045539]
[1738902691210,0.00015351,97767.0,97759.0,0.2045539]
[1738902691409,0.2045524,97760.0,97759.0,0.2045539]
[1738902691612,0.204558,97758.0,97756.0,0.37223398]
[1738902692514,0.204558,97758.0,97756.0,0.37023398]
[1738902693312,0.204558,97758.0,97756.0,0.37223398]
[1738902694008,0.204558,97758.0,97756.0,0.37523398]
[1738902694617,0.204558,97758.0,97757.0,0.2045586]
[1738902695911,0.204558,97758.0,97757.0,0.2065586]
[1738902696908,0.204558,97758.0,97757.0,0.005]
[1738902697809,0.2045754,97749.0,97748.0,0.00015351]
[1738902698216,0.3608,97751.0,97749.0,0.2045754]
[1738902699612,0.3608,97751.0,97749.0,0.2095754]
[1738902699912,0.3608,97751.0,97750.0,0.2045733]
[1738902701014,0.15331764,97754.0,97753.0,0.204567]
[1738902701515,0.001,97751.0,97750.0,0.2095733]
[1738902701714,0.001,97751.0,97750.0,0.5703733]
[1738902702115,0.18349022,97759.0,97758.0,0.2045565]
[1738902703221,0.18349022,97759.0,97758.0,0.2055565]
[1738902704725,0.18349022,97759.0,97758.0,0.2075565]
[1738902705520,0.15318441,97769.0,97765.0,0.2045411]
[1738902706723,0.00115351,97767.0,97765.0,0.2045411]
[1738902706922,0.00315351,97767.0,97765.0,0.2045411]
[1738902709125,0.00315351,97767.0,97766.0,0.2045398]
[1738902709919,0.00315351,97767.0,97766.0,0.5653398]
[1738902710714,0.15318441,97781.0,97780.0,0.2045105]
[1738902711923,0.16018441,97781.0,97780.0,0.2055105]
[1738902712825,0.16018441,97781.0,97780.0,0.5663105]
[1738902713035,0.1,97800.0,97780.0,0.3628]
[1738902713230,0.1,97800.0,97797.0,0.565275]
[1738902715031,0.1,97800.0,97797.0,0.572275]
[1738902715527,0.1,97800.0,97797.0,0.58186748]
[1738902715936,0.1,97800.0,97799.0,0.2044708]
[1738902717124,0.1,97800.0,97799.0,0.2124708]
[1738902717328,0.1,97800.0,97799.0,0.2184708]
[1738902717830,0.1,97800.0,97799.0,0.2044708]
[1738902718032,0.1,97800.0,97799.0,0.2184708]
[1738902718425,0.1,97800.0,97799.0,0.2124708]
[1738902718626,0.1,97800.0,97799.0,0.2184708]
[1738902718825,0.1,97800.0,97799.0,0.5792708]
[1738902719431,0.101,97800.0,97799.0,0.5782708]
[1738902720633,0.101,97800.0,97799.0,0.5792708]
[1738902722430,0.3054687,97800.0,97799.0,0.3748]
[1738902722629,0.101,97800.0,97799.0,0.014]
[1738902723237,0.3054687,97800.0,97799.0,0.014]
[1738902723429,0.101,97800.0,97799.0,0.014]
[1738902723631,0.101,97800.0,97799.0,0.2184708]
[1738902723831,0.101,97800.0,97799.0,0.5792708]
[1738902724338,0.101,97800.0,97799.0,0.2184708]
[1738902725141,0.101,97800.0,97799.0,0.5792708]
[1738902729553,0.101,97800.0,97799.0,0.014]
[1738902730855,0.1322,97800.0,97799.0,0.014]
[1738902742957,0.13224418,97800.0,97799.0,0.014]
[1738902744162,0.33671288,97800.0,97799.0,0.014]
[1738902744365,0.33671288,97800.0,97799.0,0.2184708]
[1738902744553,0.13224418,97800.0,97799.0,0.2184708]
[1738902744754,0.10104418,97800.0,97799.0,0.2184708]
[1738902745460,0.30551288,97800.0,97799.0,0.014]
[1738902748868,0.33641288,97800.0,97799.0,0.014]
[1738902753669,0.69721288,97800.0,97799.0,0.014]
[1738902756665,0.69721288,97800.0,97799.0,0.007]
[1738902756969,0.69721288,97800.0,97799.0,0.013]
[1738902757365,0.69721288,97800.0,97799.0,0.007]
[1738902758270,0.49174418,97800.0,97792.0,0.2044851]
[1738902758575,0.69621288,97800.0,97799.0,0.001]
[1738902759367,0.2044833,97793.0,97792.0,0.2084851]
[1738902759568,0.2044833,97793.0,97792.0,0.2114851]
[1738902760171,0.2044833,97793.0,97792.0,0.2084851]
[1738902760679,0.2044833,97793.0,97792.0,0.2114851]
[1738902760968,0.2044833,97793.0,97792.0,0.2074851]
[1738902761761,0.2044833,97793.0,97792.0,0.2114851]
[1738902762375,0.2044833,97793.0,97792.0,0.007]
[1738902764771,0.15308091,97798.0,97792.0,0.007]
[1738902764967,0.15308091,97798.0,97797.0,0.204475]
[1738902765782,0.18304871,97799.0,97798.0,0.2044729]
[1738902765970,0.38751951,97799.0,97798.0,0.2044729]
[1738902766277,0.2004812,97794.0,97793.0,0.0326]
[1738902766678,0.2004812,97794.0,97793.0,0.04251718]
[1738902766977,0.1964812,97794.0,97793.0,0.24700048]
[1738902767369,0.1964812,97794.0,97793.0,0.25000048]
[1738902767570,0.1914812,97794.0,97793.0,0.25000048]
[1738902768573,0.1914812,97794.0,97793.0,0.25600048]
[1738902768967,0.1914812,97794.0,97793.0,0.25700048]
[1738902769171,0.1914812,97794.0,97793.0,0.25600048]
[1738902770685,0.1914812,97794.0,97793.0,0.25000048]
[1738902770886,0.1914812,97794.0,97793.0,0.25400048]
[1738902772375,0.1914812,97794.0,97793.0,0.25300048]
[1738902772679,0.1914812,97794.0,97793.0,0.25200048]
[1738902773384,0.46144419,97800.0,97793.0,0.04751718]
[1738902773574,0.46084418,97800.0,97799.0,0.2044708]
[1738902774781,0.46084418,97800.0,97799.0,0.2054708]
[1738902775484,0.46084418,97800.0,97799.0,0.2064708]
[1738902775890,0.10004418,97800.0,97799.0,0.2054708]
[1738902776185,0.10004418,97800.0,97799.0,0.2064708]
[1738902776379,0.10004418,97800.0,97799.0,0.2054708]
[1738902776581,0.10004418,97800.0,97799.0,0.2084708]
[1738902776973,0.10004418,97800.0,97799.0,0.2054708]
[1738902777172,0.10004418,97800.0,97799.0,0.2064708]
[1738902782286,0.1532674,97815.0,97814.0,0.2044394]
[1738902782975,0.1532674,97815.0,97805.0,0.00015343]
[1738902783382,0.2044561,97806.0,97805.0,0.00015343]
[1738902784485,0.2064561,97806.0,97805.0,0.00015343]
[1738902785276,0.2084561,97806.0,97805.0,0.00015343]
[1738902787289,0.5692561,97806.0,97805.0,0.00015343]
[1738902788288,0.57926705,97806.0,97805.0,0.00015343]
[1738902788485,0.62538705,97806.0,97805.0,0.00015343]
[1738902788788,0.62538705,97806.0,97799.0,0.18256269]
[1738902788789,0.2044687,97800.0,97799.0,0.18256269]
[1738902789594,0.2044687,97800.0,97799.0,0.38703349]
[1738902789995,0.2044687,97800.0,97799.0,0.38903349]
[1738902790795,0.3608,97802.0,97801.0,0.2044666]